bitfinex/quotes_BTCUSD_20241004
["timestamp","ask_amount","ask_price","bid_price","bid_amount"]
[1728058049590,0.00082,61952.0,61951.0,0.191417]
[1728058049833,0.01200998,61952.0,61951.0,0.177417]
[1728058050085,0.00082,61952.0,61951.0,0.177417]
[1728058050356,0.01200998,61952.0,61951.0,0.191417]
[1728058050589,0.01200998,61952.0,61951.0,0.177417]
[1728058050590,0.00082,61952.0,61951.0,0.177417]
[1728058050842,0.01200998,61952.0,61951.0,0.191417]
[1728058051101,0.01199438,61952.0,61951.0,0.191417]
[1728058051341,0.01199438,61952.0,61951.0,0.205417]
[1728058051579,0.01199438,61952.0,61951.0,0.39208963]
[1728058051833,0.01199438,61952.0,61951.0,0.37808963]
[1728058052056,0.01199438,61952.0,61951.0,0.39208963]
[1728058055819,0.01199438,61952.0,61951.0,0.51825963]
[1728058056026,0.01199438,61952.0,61951.0,0.331587]
[1728058056027,0.00082,61952.0,61951.0,0.331587]
[1728058056246,0.00082,61952.0,61951.0,0.42445963]
[1728058056458,0.00082,61952.0,61951.0,0.39645963]
[1728058057146,0.00082,61952.0,61951.0,0.163417]
[1728058057346,0.00082,61952.0,61951.0,0.191417]
[1728058057580,0.03734974,61952.0,61951.0,0.191417]
[1728058057795,0.03734933,61952.0,61951.0,0.177417]
[1728058058450,0.03734933,61952.0,61951.0,0.191417]
[1728058058710,0.03734933,61952.0,61951.0,0.177417]
[1728058058957,0.03734933,61952.0,61951.0,0.163417]
[1728058059206,0.03734933,61952.0,61951.0,0.190417]
[1728058059492,0.03734933,61952.0,61951.0,0.176417]
[1728058059760,0.03734933,61952.0,61951.0,0.027]
[1728058059761,0.19876433,61952.0,61951.0,0.027]
[1728058060286,0.11914933,61952.0,61951.0,0.027]
[1728058060558,0.28056433,61952.0,61951.0,0.027]
[1728058060801,0.11914933,61952.0,61951.0,0.014]
[1728058061033,0.28056433,61952.0,61951.0,0.022]
[1728058061310,0.11914933,61952.0,61951.0,0.022]
[1728058061970,0.10792851,61952.0,61951.0,0.022]
[1728058062234,0.1194238,61952.0,61951.0,0.022]
[1728058062472,0.1194238,61952.0,61951.0,0.008]
[1728058062702,0.1194238,61952.0,61951.0,0.017]
[1728058063699,0.2808388,61952.0,61951.0,0.017]
[1728058064176,0.1194238,61952.0,61951.0,0.017]
[1728058064473,0.1194238,61952.0,61951.0,0.019]
[1728058064714,0.2808388,61952.0,61951.0,0.017]
[1728058065427,0.5037388,61952.0,61951.0,0.017]
[1728058065650,0.76291929,61952.0,61951.0,0.017]
[1728058065880,0.69041143,61952.0,61951.0,0.017]
[1728058066368,0.83542716,61952.0,61951.0,0.008]
[1728058066599,0.78010199,61952.0,61951.0,0.008]
[1728058067055,0.284425,61948.0,61947.0,0.00164]
[1728058067289,0.367625,61948.0,61947.0,0.00164]
[1728058067519,0.47583927,61948.0,61947.0,0.00164]
[1728058067980,0.47585506,61948.0,61947.0,0.00164]
[1728058068258,0.4758544,61948.0,61947.0,0.00164]
[1728058068494,0.37914548,61948.0,61947.0,0.00164]
[1728058068734,0.47583198,61948.0,61947.0,0.00164]
[1728058068964,0.47583435,61948.0,61947.0,0.00164]
[1728058069189,0.37914548,61948.0,61947.0,0.00164]
[1728058069418,0.4758353,61948.0,61947.0,0.00164]
[1728058070540,0.37914548,61948.0,61947.0,0.00164]
[1728058071091,0.37914548,61948.0,61947.0,0.00364]
[1728058071092,0.25614548,61948.0,61947.0,0.00364]
[1728058071320,0.09472048,61948.0,61947.0,0.00364]
[1728058071775,0.25614548,61948.0,61947.0,0.00364]
[1728058072007,0.25614548,61948.0,61947.0,0.00164]
[1728058072225,0.25614548,61948.0,61947.0,0.00464]
[1728058072465,0.25614548,61948.0,61947.0,0.00864]
[1728058073640,0.25614548,61948.0,61947.0,0.00564]
[1728058074100,0.25614548,61948.0,61947.0,0.00764]
[1728058074564,0.25614548,61948.0,61947.0,0.00164]
[1728058075044,0.25614548,61948.0,61947.0,0.00264]
[1728058075279,0.25614548,61948.0,61947.0,0.00164]
[1728058075749,0.55751811,61948.0,61947.0,0.00164]
[1728058075978,0.65751811,61948.0,61947.0,0.00464]
[1728058076223,0.70582875,61948.0,61947.0,0.00464]
[1728058076697,0.65751811,61948.0,61947.0,0.00664]
[1728058077206,0.65751811,61948.0,61947.0,0.00464]
[1728058077665,0.65751811,61948.0,61947.0,0.00164]
[1728058077889,0.65751811,61948.0,61947.0,0.00264]
[1728058078351,0.65751811,61948.0,61947.0,0.00164]
[1728058080261,0.47084548,61948.0,61947.0,0.00164]
[1728058081200,0.01152048,61948.0,61947.0,0.00164]
[1728058081702,0.17294548,61948.0,61947.0,0.00164]
[1728058081935,0.17290947,61948.0,61947.0,0.00164]
[1728058082910,0.33930947,61948.0,61947.0,0.00164]
[1728058083901,0.33930947,61948.0,61947.0,0.00964]
[1728058084360,0.33930947,61948.0,61947.0,0.00164]
[1728058085998,0.33930947,61948.0,61947.0,0.00364]
[1728058087009,0.34012947,61948.0,61947.0,0.00364]
[1728058087198,0.34012947,61948.0,61947.0,0.00464]
[1728058087478,0.34012947,61948.0,61947.0,0.00264]
[1728058087712,0.34012947,61948.0,61947.0,0.00164]
[1728058087713,0.48844617,61948.0,61947.0,0.00164]
[1728058087951,0.56090619,61948.0,61947.0,0.00164]
[1728058088877,0.55765463,61948.0,61947.0,0.00164]
[1728058089386,0.5576376,61948.0,61947.0,0.00164]
[1728058089620,0.48519461,61948.0,61947.0,0.00164]
[1728058089962,0.55763703,61948.0,61947.0,0.00164]
[1728058090802,0.55763904,61948.0,61947.0,0.00164]
[1728058091438,0.48519461,61948.0,61947.0,0.00164]
[1728058092444,0.57706083,61948.0,61947.0,0.00164]
[1728058092671,0.48519461,61948.0,61947.0,0.00164]
[1728058093372,0.49031688,61948.0,61947.0,0.00164]
[1728058093597,0.63010087,61948.0,61947.0,0.00164]
[1728058093877,0.63010087,61948.0,61947.0,0.00264]
[1728058095062,0.63010087,61948.0,61947.0,0.00364]
[1728058095583,0.79328758,61948.0,61947.0,0.00364]
[1728058096091,0.63010087,61948.0,61947.0,0.00364]
[1728058096607,0.63510087,61948.0,61947.0,0.00364]
[1728058096855,0.63510087,61948.0,61944.0,0.00164]
[1728058096856,0.65660563,61945.0,61944.0,1e-06]
[1728058097064,0.65660563,61945.0,61929.0,0.00164]
[1728058097065,0.464972,61930.0,61929.0,0.00164]
[1728058097281,0.69995252,61930.0,61929.0,0.00164]
[1728058097505,0.73343409,61930.0,61929.0,0.00164]
[1728058097768,0.49845357,61930.0,61929.0,0.00164]
[1728058098969,0.49845357,61930.0,61929.0,0.00564]
[1728058099202,0.49845357,61930.0,61929.0,0.01064]
[1728058099714,0.82924261,61930.0,61929.0,0.01064]
[1728058100195,0.6851262,61930.0,61929.0,0.01064]
[1728058100904,0.6851262,61930.0,61929.0,0.00164]
[1728058101148,0.6871262,61930.0,61929.0,0.00164]
[1728058101610,0.6851262,61930.0,61929.0,0.00164]
[1728058101868,0.5870262,61930.0,61929.0,0.00164]
[1728058102115,0.5870262,61930.0,61929.0,0.00264]
[1728058102116,0.37935357,61930.0,61929.0,0.00264]
[1728058102367,0.53590678,61930.0,61929.0,0.00264]
[1728058102633,0.63060678,61930.0,61929.0,0.00264]
[1728058102912,0.62860678,61930.0,61929.0,0.00164]
[1728058103240,0.023,61921.0,61917.0,0.00164]
[1728058103249,0.261503,61918.0,61917.0,0.00164]
[1728058103486,0.4173122,61918.0,61917.0,0.00164]
[1728058103746,0.36901723,61918.0,61917.0,0.00164]
[1728058103996,0.37134539,61918.0,61917.0,0.00164]
[1728058104435,0.29494539,61918.0,61917.0,0.00164]
[1728058104681,0.29594539,61918.0,61917.0,0.00264]
[1728058105134,0.29494539,61918.0,61917.0,0.00164]
[1728058105380,0.29994539,61918.0,61917.0,0.00264]
[1728058105620,0.29494539,61918.0,61917.0,0.00164]
[1728058105851,0.29994539,61918.0,61917.0,0.00164]
[1728058106062,0.29594539,61918.0,61917.0,0.00164]
[1728058107426,0.29994539,61918.0,61917.0,0.00164]
[1728058107632,0.30494539,61918.0,61917.0,0.00164]
[1728058109552,0.32794539,61918.0,61917.0,0.00164]
[1728058109773,0.50924539,61918.0,61917.0,0.00164]
[1728058111177,0.51456166,61918.0,61917.0,0.00164]
[1728058111410,0.67774837,61918.0,61917.0,0.00164]
[1728058113731,0.67274837,61918.0,61917.0,0.00164]
[1728058113959,0.67674837,61918.0,61917.0,0.00264]
[1728058114247,0.68574837,61918.0,61917.0,0.00364]
[1728058114490,0.68574837,61918.0,61917.0,0.00264]
[1728058114717,0.74245963,61918.0,61917.0,0.00364]
[1728058114913,0.73345963,61918.0,61917.0,0.00264]
[1728058115053,0.67974837,61918.0,61917.0,0.00264]
[1728058115280,0.68974837,61918.0,61917.0,0.00364]
[1728058115501,0.74145963,61918.0,61917.0,0.00264]
[1728058115922,0.323045,61911.0,61908.0,0.00164]
[1728058116119,0.47119963,61909.0,61908.0,0.00164]
[1728058116348,0.64653063,61897.0,61896.0,0.24500824]
[1728058116551,0.70128148,61897.0,61896.0,0.24500824]
[1728058116758,0.83653063,61897.0,61896.0,0.001642]
[1728058116988,0.70128148,61897.0,61896.0,0.001642]
[1728058117403,0.161587,61886.0,61885.0,0.00164]
[1728058117616,0.54955963,61886.0,61885.0,0.00164]
[1728058117834,0.62958027,61886.0,61885.0,0.00164]
[1728058118084,0.7894861,61886.0,61885.0,0.00164]
[1728058118707,0.7904861,61886.0,61885.0,0.00264]
[1728058119566,0.8860861,61886.0,61885.0,0.00264]
[1728058119735,0.8870861,61886.0,61885.0,0.00264]
[1728058119932,0.67546901,61886.0,61885.0,0.00264]
[1728058120207,0.31889638,61886.0,61885.0,0.00264]
[1728058120445,0.04949189,61886.0,61885.0,0.00364]
[1728058120674,0.0403419,61886.0,61885.0,0.00364]
[1728058120902,0.04888279,61886.0,61885.0,0.16523]
[1728058121134,0.03388279,61886.0,61885.0,0.00164]
[1728058121357,0.03388279,61886.0,61885.0,0.00364]
[1728058121358,0.04288279,61886.0,61885.0,0.00364]
[1728058121584,0.05088279,61886.0,61885.0,0.16523]
[1728058121850,0.04288279,61886.0,61885.0,0.00364]
[1728058122302,0.04388279,61886.0,61885.0,0.00364]
[1728058122985,0.0353419,61886.0,61885.0,0.00364]
[1728058123207,0.0263419,61886.0,61885.0,0.00364]
[1728058123433,0.0253419,61886.0,61885.0,0.16523]
[1728058123660,0.0263419,61886.0,61885.0,0.00364]
[1728058123874,0.0273419,61886.0,61885.0,0.00364]
[1728058124104,0.0338856,61886.0,61885.0,0.00364]
[1728058124373,0.0358856,61886.0,61885.0,0.00364]
[1728058124819,0.0338856,61886.0,61885.0,0.00364]
[1728058125047,0.1964726,61886.0,61885.0,0.00364]
[1728058125267,0.1974726,61886.0,61885.0,0.00364]
[1728058125487,0.1964726,61886.0,61885.0,0.00164]
[1728058126392,0.1964726,61886.0,61885.0,0.00364]
[1728058126862,0.1974726,61886.0,61885.0,0.00164]
[1728058127095,0.1964726,61886.0,61885.0,0.00164]
[1728058127321,0.1984726,61886.0,61885.0,0.00164]
[1728058127773,0.1974726,61886.0,61885.0,0.00164]
[1728058128013,0.1984726,61886.0,61885.0,0.00164]
[1728058128703,0.1984726,61886.0,61885.0,0.00364]
[1728058128927,0.1984726,61886.0,61885.0,0.00164]
[1728058129641,0.1984726,61886.0,61885.0,0.00364]
[1728058130119,0.1984726,61886.0,61885.0,0.00164]
[1728058130827,0.1984726,61886.0,61885.0,0.00364]
[1728058131070,0.20164165,61886.0,61885.0,0.00364]
[1728058131292,0.20164165,61886.0,61885.0,0.00164]
[1728058132217,0.20164165,61886.0,61885.0,0.00364]
[1728058132439,0.20164165,61886.0,61885.0,0.00164]
[1728058133139,0.20064165,61886.0,61885.0,0.00164]
[1728058133378,0.19864165,61886.0,61885.0,0.00164]
[1728058134072,0.22164165,61886.0,61885.0,0.00164]
[1728058134323,0.29884165,61886.0,61885.0,0.00164]
[1728058135480,0.39884165,61886.0,61885.0,0.00164]
[1728058135725,0.39984165,61886.0,61885.0,0.00164]
[1728058135978,0.39884165,61886.0,61885.0,0.00164]
[1728058136737,0.39984165,61886.0,61885.0,0.00164]
[1728058136971,0.39884165,61886.0,61885.0,0.00164]
[1728058137229,0.55434148,61886.0,61885.0,0.00164]
[1728058137486,0.56234148,61886.0,61885.0,0.00164]
[1728058137966,0.56734148,61886.0,61885.0,0.00164]
[1728058138429,0.41184165,61886.0,61885.0,0.00164]
[1728058139840,0.65520789,61886.0,61885.0,0.00164]
[1728058140071,0.41184165,61886.0,61885.0,0.00164]
[1728058140327,0.51054165,61886.0,61885.0,0.00164]
[1728058141028,0.65520789,61886.0,61885.0,0.00164]
[1728058141300,0.56202836,61886.0,61885.0,0.00164]
[1728058141531,0.40684165,61886.0,61885.0,0.00164]
[1728058142710,0.41384165,61886.0,61885.0,0.00164]
[1728058142949,0.50444165,61886.0,61885.0,0.00164]
[1728058143191,0.49744165,61886.0,61885.0,0.00164]
[1728058143432,0.50644165,61886.0,61885.0,0.00164]
[1728058143679,0.50644165,61886.0,61867.0,0.00164]
[1728058143680,0.005,61884.0,61867.0,0.00164]
[1728058143908,0.80177369,61886.0,61867.0,0.00164]
[1728058143909,0.363434,61868.0,61867.0,0.00164]
[1728058144150,0.284634,61868.0,61867.0,0.00164]
[1728058144380,0.29620273,61868.0,61867.0,0.00164]
[1728058144615,0.32155133,61868.0,61867.0,0.00164]
[1728058144851,0.40035133,61868.0,61867.0,0.00164]
[1728058145585,0.40435133,61868.0,61867.0,0.00164]
[1728058146838,0.40935133,61868.0,61867.0,0.00164]
[1728058147076,0.40535133,61868.0,61867.0,0.00164]
[1728058147330,0.40335133,61868.0,61867.0,0.00164]
[1728058147853,0.161665,61856.0,61855.0,0.00164]
[1728058148108,0.47133763,61856.0,61855.0,0.00164]
[1728058148360,0.48287364,61856.0,61855.0,0.00164]
[1728058148587,0.50822785,61856.0,61855.0,0.00164]
[1728058149056,0.50922785,61856.0,61855.0,0.00164]
[1728058149793,0.32255522,61856.0,61855.0,0.00164]
[1728058150043,0.33055522,61856.0,61855.0,0.00164]
[1728058150288,0.51622785,61856.0,61855.0,0.00164]
[1728058150569,0.50822785,61856.0,61855.0,0.00164]
[1728058150811,0.50922785,61856.0,61855.0,0.00164]
[1728058151039,0.51322785,61856.0,61855.0,0.00164]
[1728058151520,0.51522785,61856.0,61855.0,0.00164]
[1728058151758,0.51222785,61856.0,61855.0,0.00164]
[1728058151996,0.51422785,61856.0,61855.0,0.00164]
[1728058152749,0.51022785,61856.0,61855.0,0.00164]
[1728058153216,0.52022785,61856.0,61855.0,0.00164]
[1728058153696,0.51022785,61856.0,61855.0,0.00164]
[1728058153922,0.51322785,61856.0,61855.0,0.00164]
[1728058154630,0.51022785,61856.0,61855.0,0.00164]
[1728058155105,0.59072785,61856.0,61855.0,0.00164]
[1728058155861,0.59372785,61856.0,61855.0,0.00164]
[1728058156316,0.59072785,61856.0,61855.0,0.00164]
[1728058156813,0.59372785,61856.0,61855.0,0.00164]
[1728058158782,0.68862785,61856.0,61855.0,0.00164]
[1728058159037,0.85181456,61856.0,61855.0,0.00164]
[1728058159534,0.84881456,61856.0,61855.0,0.00164]
[1728058159794,0.85881456,61856.0,61855.0,0.00164]
[1728058160046,0.85881456,61856.0,61836.0,0.0160811]
[1728058160047,0.55278263,61839.0,61838.0,0.0013929]
[1728058160305,0.64963249,61839.0,61838.0,0.0013929]
[1728058160604,0.56421053,61839.0,61838.0,0.0013929]
[1728058160883,0.58957256,61839.0,61838.0,0.0013929]
[1728058161674,0.8329388,61839.0,61838.0,0.0013929]
[1728058161879,0.8329388,61839.0,61836.0,0.0160811]
[1728058161880,0.47142163,61824.0,61815.0,0.24336624]
[1728058162110,0.4861082,61824.0,61815.0,0.24336624]
[1728058162351,0.49742149,61824.0,61808.0,0.002]
[1728058162599,0.59938972,61824.0,61804.0,0.0001]
[1728058162825,0.59938972,61824.0,61808.0,0.002]
[1728058163082,0.59938972,61824.0,61806.0,0.002]
[1728058163336,0.59938972,61824.0,61808.0,0.002]
[1728058163844,0.60638972,61824.0,61808.0,0.002]
[1728058164073,0.61238972,61824.0,61808.0,0.002]
[1728058164809,0.53578972,61824.0,61815.0,0.002]
[1728058165086,0.51278972,61824.0,61815.0,0.002]
[1728058165344,0.32611709,61824.0,61815.0,0.002]
[1728058165603,0.51278972,61824.0,61815.0,0.002]
[1728058166426,0.51278972,61824.0,61818.0,0.002]
[1728058166427,0.53578972,61824.0,61818.0,0.002]
[1728058166699,0.34211709,61824.0,61818.0,0.002]
[1728058166910,0.33611709,61824.0,61818.0,0.002]
[1728058167163,0.34911709,61824.0,61818.0,0.002]
[1728058167391,0.32011709,61824.0,61818.0,0.002]
[1728058167625,0.32511709,61824.0,61818.0,0.163764]
[1728058167851,0.32011709,61824.0,61818.0,0.002]
[1728058168119,0.32011709,61824.0,61823.0,0.00364]
[1728058168362,0.31311709,61824.0,61823.0,0.00364]
[1728058168887,0.31611709,61824.0,61823.0,0.00364]
[1728058169134,0.05136809,61824.0,61823.0,0.00304]
[1728058169371,0.05136809,61824.0,61823.0,0.00294]
[1728058169607,0.05136809,61824.0,61823.0,0.00264]
[1728058169846,0.05136809,61824.0,61823.0,0.00214]
[1728058170081,0.05136809,61824.0,61823.0,0.00204]
[1728058170323,0.21511709,61824.0,61823.0,0.00204]
[1728058170585,0.21511709,61824.0,61823.0,0.00174]
[1728058170831,0.21411709,61824.0,61823.0,0.00104]
[1728058171070,0.21511709,61824.0,61823.0,0.00104]
[1728058171315,0.21411709,61824.0,61823.0,0.00084]
[1728058171577,0.21311709,61824.0,61823.0,0.00044]
[1728058171845,0.21411709,61824.0,61823.0,0.000961]
[1728058172334,0.21311709,61824.0,61823.0,0.000661]
[1728058172578,0.21511709,61824.0,61823.0,6.1e-05]
[1728058172821,0.161752,61823.0,61821.0,0.000161]
[1728058173088,0.0158638,61822.0,61819.0,0.161623]
[1728058173315,0.0158638,61822.0,61817.0,0.161766]
[1728058173316,0.18878486,61822.0,61817.0,0.161766]
[1728058173568,0.18878486,61822.0,61818.0,0.18699919]
[1728058173820,0.161758,61821.0,61815.0,0.323542]
[1728058174036,0.02702986,61822.0,61818.0,0.161764]
[1728058174037,0.01638713,61820.0,61818.0,0.161764]
[1728058174266,0.01638713,61820.0,61816.0,0.02533523]
[1728058174267,0.02754016,61820.0,61819.0,0.161762]
[1728058174501,0.02754016,61820.0,61819.0,0.18709683]
[1728058175427,0.02754016,61820.0,61819.0,0.02533483]
[1728058175931,0.02754016,61820.0,61819.0,0.18709638]
[1728058176153,0.02854016,61820.0,61819.0,0.18709638]
[1728058176871,0.02954016,61820.0,61819.0,0.18709638]
[1728058178297,0.19129916,61820.0,61819.0,0.02533438]
[1728058178552,0.19129916,61820.0,61804.0,0.00523891]
[1728058178553,0.323579,61809.0,61804.0,0.00523891]
[1728058178802,0.01782663,61808.0,61806.0,0.06587973]
[1728058179048,0.03074164,61808.0,61804.0,0.0001]
[1728058179290,0.2049865,61808.0,61806.0,0.02533923]
[1728058179533,0.01291501,61807.0,61806.0,0.161795]
[1728058179763,0.03080708,61807.0,61806.0,0.02533935]
[1728058181179,0.03080708,61807.0,61806.0,0.18713535]
[1728058181427,0.03180708,61807.0,61806.0,0.18713535]
[1728058181902,0.03180708,61807.0,61806.0,0.02533935]
[1728058182143,0.03180708,61807.0,61806.0,0.18713535]
[1728058182622,0.03180708,61807.0,61806.0,0.02533935]
[1728058182852,0.03080708,61807.0,61806.0,0.02533935]
[1728058183086,0.03180708,61807.0,61806.0,0.02533935]
[1728058183357,0.03080708,61807.0,61806.0,0.02533935]
[1728058183583,0.03180708,61807.0,61806.0,0.02615935]
[1728058184556,0.03180708,61807.0,61806.0,0.06670285]
[1728058184557,0.03280708,61807.0,61806.0,0.06670285]
[1728058185511,0.19460008,61807.0,61806.0,0.06670307]
[1728058185751,0.19460008,61807.0,61806.0,0.02615935]
[1728058185990,0.19460008,61807.0,61806.0,0.00082]
[1728058185991,0.40531656,61807.0,61806.0,0.00082]
[1728058186241,0.40431656,61807.0,61806.0,0.00082]
[1728058186477,0.27460008,61807.0,61806.0,0.00082]
[1728058186718,0.27360008,61807.0,61806.0,0.00082]
[1728058187454,0.39660008,61807.0,61806.0,0.00082]
[1728058187694,0.49560008,61807.0,61806.0,0.00082]
[1728058187919,0.49360008,61807.0,61806.0,0.00082]
[1728058188397,0.65241656,61807.0,61806.0,0.00082]
[1728058188896,0.49260008,61807.0,61806.0,0.00082]
[1728058189360,0.49560008,61807.0,61806.0,0.00082]
[1728058189613,0.73896632,61807.0,61806.0,0.00082]
[1728058189840,0.49760008,61807.0,61806.0,0.00082]
[1728058190072,0.49560008,61807.0,61806.0,0.00082]
[1728058190542,0.49260008,61807.0,61806.0,0.00082]
[1728058191211,0.58653678,61807.0,61806.0,0.00082]
[1728058191474,0.58153678,61807.0,61806.0,0.00082]
[1728058191703,0.59053678,61807.0,61806.0,0.00082]
[1728058192168,0.59053678,61807.0,61801.0,0.0002]
[1728058192169,0.54877963,61802.0,61801.0,0.0002]
[1728058192449,0.71017097,61802.0,61801.0,0.0002]
[1728058192684,0.57763652,61802.0,61801.0,0.0002]
[1728058193613,0.58863652,61802.0,61801.0,0.0002]
[1728058193830,0.57563652,61802.0,61801.0,0.0002]
[1728058194067,0.59163652,61802.0,61801.0,0.0002]
[1728058194290,0.60363652,61802.0,61801.0,0.0002]
[1728058194736,0.58963652,61802.0,61801.0,0.0002]
[1728058194963,0.60563652,61802.0,61801.0,0.0002]
[1728058195425,0.59163652,61802.0,61801.0,0.0002]
[1728058195662,0.74777353,61802.0,61801.0,0.0002]
[1728058195882,0.73377353,61802.0,61801.0,0.0002]
[1728058196131,0.73177353,61802.0,61801.0,0.0002]
[1728058196364,0.74577353,61802.0,61801.0,0.0002]
[1728058196589,0.73377353,61802.0,61801.0,0.0002]
[1728058196816,0.73377353,61802.0,61801.0,0.00102]
[1728058197065,0.58963652,61802.0,61801.0,0.00102]
[1728058197326,0.60363652,61802.0,61801.0,0.00102]
[1728058197570,0.58963652,61802.0,61801.0,0.00102]
[1728058198038,0.60363652,61802.0,61801.0,0.00102]
[1728058198284,0.50363652,61802.0,61801.0,0.00102]
[1728058198523,0.22766389,61802.0,61801.0,0.00102]
[1728058198823,0.23866389,61802.0,61801.0,0.00102]
[1728058199053,0.22466389,61802.0,61801.0,0.00102]
[1728058199309,0.23566389,61802.0,61801.0,0.00102]
[1728058199529,0.30166389,61802.0,61801.0,0.00102]
[1728058199769,0.20166389,61802.0,61801.0,0.00102]
[1728058200001,0.1960263,61802.0,61801.0,0.00102]
[1728058200461,0.37169893,61802.0,61801.0,0.00102]
[1728058200692,0.52528445,61802.0,61801.0,0.00102]
[1728058200926,0.1940263,61802.0,61801.0,0.00102]
[1728058201181,0.2940263,61802.0,61801.0,0.00102]
[1728058201418,0.2860263,61802.0,61801.0,0.00102]
[1728058201661,0.2910263,61802.0,61801.0,0.00102]
[1728058202127,0.2850263,61802.0,61801.0,0.00102]
[1728058202604,0.2890263,61802.0,61801.0,0.00102]
[1728058203835,0.1890263,61802.0,61801.0,0.00102]
[1728058204810,0.1840263,61802.0,61801.0,0.00102]
[1728058205088,0.1850263,61802.0,61801.0,0.00102]
[1728058206847,0.1840263,61802.0,61801.0,0.00102]
[1728058207092,0.1870263,61802.0,61801.0,0.00102]
[1728058207567,0.1800263,61802.0,61801.0,0.00102]
[1728058207810,0.1810263,61802.0,61801.0,0.00102]
[1728058208265,0.20640148,61802.0,61801.0,0.00102]
[1728058208729,0.20740148,61802.0,61801.0,0.00102]
[1728058209702,0.04559448,61802.0,61801.0,0.00102]
[1728058209972,0.04559448,61802.0,61801.0,0.42480163]
[1728058210186,0.002,61802.0,61801.0,0.42480163]
[1728058210419,0.002,61802.0,61801.0,0.45014211]
[1728058210668,0.002,61802.0,61801.0,0.49268328]
[1728058210903,0.00164,61804.0,61803.0,0.163804]
[1728058211144,0.00164,61804.0,61803.0,0.22768565]
[1728058211645,0.02536887,61808.0,61807.0,0.161793]
[1728058211884,0.02536887,61808.0,61807.0,0.49444728]
[1728058212129,0.00164,61824.0,61807.0,0.49444728]
[1728058212355,0.00164,61824.0,61823.0,0.161752]
[1728058213573,0.00264,61824.0,61823.0,0.162752]
[1728058213878,0.00364,61824.0,61823.0,0.162752]
[1728058213978,0.01930758,61824.0,61823.0,0.162752]
[1728058214734,0.00364,61824.0,61823.0,0.245552]
[1728058215710,0.00364,61824.0,61823.0,0.247552]
[1728058216210,0.00264,61824.0,61823.0,0.245552]
[1728058216447,0.00264,61824.0,61823.0,0.244552]
[1728058217185,0.00364,61824.0,61823.0,0.244552]
[1728058217707,0.24336624,61836.0,61835.0,0.16172]
[1728058217936,0.24336624,61836.0,61835.0,0.34839263]
[1728058218467,0.24336624,61844.0,61835.0,0.34839263]
[1728058218716,0.161705,61841.0,61836.0,0.161717]
[1728058219199,0.323402,61843.0,61835.0,0.19167263]
[1728058219437,0.24336624,61844.0,61835.0,0.005]
[1728058219660,0.323419,61840.0,61835.0,0.006]
[1728058219914,0.161716,61837.0,61836.0,0.003]
[1728058220145,0.161705,61841.0,61836.0,0.164717]
[1728058220376,0.161711,61839.0,61836.0,0.003]
[1728058220622,0.02535722,61844.0,61834.0,0.18667263]
[1728058220853,0.161703,61842.0,61838.0,0.161712]
[1728058221076,0.161714,61838.0,61834.0,0.161722]
[1728058221301,0.16171,61839.0,61835.0,0.16172]
[1728058221607,0.161713,61838.0,61834.0,0.161722]
[1728058221849,0.323417,61840.0,61836.0,0.005]
[1728058222073,0.161711,61839.0,61835.0,0.16172]
[1728058222305,0.161708,61840.0,61836.0,0.161715]
[1728058222989,0.323405,61842.0,61834.0,0.005]
[1728058223246,0.323421,61839.0,61833.0,0.161724]
[1728058223497,0.161715,61837.0,61836.0,0.005]
[1728058224731,0.18707388,61837.0,61836.0,0.005]
[1728058224981,0.02535888,61837.0,61831.0,0.16173]
[1728058225230,0.161719,61836.0,61833.0,0.006]
[1728058225485,0.161719,61836.0,61826.0,0.18667263]
[1728058225718,0.02535888,61837.0,61829.0,0.161735]
[1728058225719,0.41429778,61835.0,61829.0,0.161735]
[1728058225956,0.41429778,61835.0,61829.0,0.161734]
[1728058225957,0.161725,61834.0,61829.0,0.161734]
[1728058226215,0.01462117,61833.0,61829.0,0.161734]
[1728058226445,0.01462117,61833.0,61831.0,0.004]
[1728058226446,0.02171256,61833.0,61831.0,0.004]
[1728058226674,0.02171256,61833.0,61832.0,0.161728]
[1728058226675,0.01462117,61833.0,61832.0,0.161728]
[1728058226948,0.24336624,61836.0,61831.0,0.004]
[1728058227197,0.161722,61835.0,61831.0,0.004]
[1728058227702,0.161718,61836.0,61832.0,0.161727]
[1728058227951,0.02535888,61837.0,61832.0,0.323455]
[1728058228182,0.1817,61847.0,61833.0,0.161725]
[1728058228183,0.323405,61842.0,61833.0,0.161725]
[1728058228449,0.02535836,61836.0,61830.0,0.323466]
[1728058228714,0.02535836,61836.0,61835.0,0.16172]
[1728058228941,0.02735836,61836.0,61835.0,0.16172]
[1728058229424,0.02635836,61836.0,61835.0,0.16172]
[1728058229876,0.24336624,61841.0,61840.0,0.161707]
[1728058230357,0.02535689,61844.0,61843.0,0.161699]
[1728058230599,0.02535689,61844.0,61841.0,0.323408]
[1728058230826,0.02535689,61844.0,61843.0,0.161699]
[1728058231775,0.02635689,61844.0,61843.0,0.161699]
[1728058232032,0.03300662,61844.0,61843.0,0.161699]
[1728058232503,0.03400662,61844.0,61843.0,0.170699]
[1728058232747,0.00864973,61844.0,61843.0,0.170699]
[1728058233002,0.002,61844.0,61843.0,0.170699]
[1728058233254,0.00879908,61844.0,61843.0,0.170699]
[1728058233526,0.003,61844.0,61843.0,0.170699]
[1728058234665,0.02535394,61847.0,61846.0,0.161691]
[1728058234893,0.0312078,61847.0,61846.0,0.161691]
[1728058235344,0.03409131,61847.0,61846.0,0.161691]
[1728058236086,0.03609131,61847.0,61846.0,0.172691]
[1728058236829,0.03609131,61847.0,61846.0,0.011]
[1728058236830,0.19778031,61847.0,61846.0,0.011]
[1728058237535,0.56065294,61847.0,61846.0,0.011]
[1728058237770,0.658299,61847.0,61846.0,0.011]
[1728058238234,0.658299,61847.0,61832.0,0.24336624]
[1728058238235,0.161725,61833.0,61832.0,0.24336624]
[1728058238690,0.161725,61833.0,61824.0,0.00082]
[1728058238691,0.323466,61831.0,61824.0,0.00082]
[1728058238928,0.01514434,61830.0,61826.0,0.161742]
[1728058239172,0.02382771,61830.0,61828.0,0.161738]
[1728058239403,0.02382771,61830.0,61826.0,0.323485]
[1728058239404,0.02382771,61830.0,61829.0,0.161736]